[Event "Titled Tuesday Blitz April 25 Late 2023"]
[White "Kepeshchuk, Mykhaylo"]
[Black "Garmash, Aliona"]
[WhiteFideId "14113139"]
[BlackFideId "34127620"]
[WhiteElo "2279"]
[BlackElo "1959"]
[Result "1-0"]
[Round "05"]
[TimeControl "180+2"]
[Date "2023.04.25"]
[WhiteClock "0:00:24"]
[BlackClock "0:00:09"]

1. d4 {[%clk 0:03:00]}  d5 {[%clk 0:02:59]} 2. c4 {[%clk 0:03:00]}  c6 {[%clk 0:03:00]} 3. Nf3 {[%clk 0:02:54]}  Nf6 {[%clk 0:02:59]} 4. g3 {[%clk 0:02:55]}  Bf5 {[%clk 0:02:59]} 5. Bg2 {[%clk 0:02:55]}  e6 {[%clk 0:02:59]} 6. O-O {[%clk 0:02:56]}  Nbd7 {[%clk 0:02:58]} 7. Nc3 {[%clk 0:02:56]}  h6 {[%clk 0:02:57]} 8. Re1 {[%clk 0:02:55]}  Be7 {[%clk 0:02:57]} 9. Nd2 {[%clk 0:02:55]}  O-O {[%clk 0:02:56]} 10. e4 {[%clk 0:02:56]}  dxe4 {[%clk 0:02:56]} 11. Ndxe4 {[%clk 0:02:57]}  Nxe4 {[%clk 0:02:52]} 12. Nxe4 {[%clk 0:02:58]}  Nf6 {[%clk 0:02:52]} 13. Nc5 {[%clk 0:02:58]}  Qb6 {[%clk 0:02:31]} 14. Qb3 {[%clk 0:02:56]}  Rad8 {[%clk 0:02:07]} 15. Nxb7 {[%clk 0:02:32]}  Rb8 {[%clk 0:01:24]} 16. Qxb6 {[%clk 0:02:12]}  axb6 {[%clk 0:01:23]} 17. Bxc6 {[%clk 0:02:13]}  Rfc8 {[%clk 0:01:11]} 18. Bf4 {[%clk 0:01:50]}  Ra8 {[%clk 0:01:10]} 19. Bg2 {[%clk 0:01:42]}  g5 {[%clk 0:01:09]} 20. Bd6 {[%clk 0:01:26]}  Kf8 {[%clk 0:00:46]} 21. c5 {[%clk 0:01:20]}  bxc5 {[%clk 0:00:41]} 22. dxc5 {[%clk 0:01:20]}  Ra7 {[%clk 0:00:32]} 23. b4 {[%clk 0:01:17]}  Ne8 {[%clk 0:00:28]} 24. Bxe7+ {[%clk 0:01:08]}  Kxe7 {[%clk 0:00:28]} 25. a4 {[%clk 0:01:08]}  Bc2 {[%clk 0:00:22]} 26. a5 {[%clk 0:01:07]}  Bd3 {[%clk 0:00:22]} 27. c6 {[%clk 0:00:49]}  Bb5 {[%clk 0:00:18]} 28. Rec1 {[%clk 0:00:44]}  Ra6 {[%clk 0:00:16]} 29. Nc5 {[%clk 0:00:41]}  Ra7 {[%clk 0:00:15]} 30. Nd7 {[%clk 0:00:34]}  Ra6 {[%clk 0:00:12]} 31. Nb6 {[%clk 0:00:34]}  Rc7 {[%clk 0:00:11]} 32. Rc5 {[%clk 0:00:33]}  Bd3 {[%clk 0:00:10]} 33. b5 {[%clk 0:00:30]}  Raa7 {[%clk 0:00:09]} 34. Nc4 {[%clk 0:00:24]} 1-0


[Site "https://www.chess.com"]

[Event "Titled Tuesday Blitz April 25 Late 2023"]
[White "Jimenez Almeida, Luis David"]
[Black "Antonova, Nadezhda"]
[WhiteFideId "22242244"]
[BlackFideId "14700182"]
[WhiteElo "2245"]
[BlackElo "1765"]
[Result "1-0"]
[Round "05"]
[TimeControl "180+2"]
[Date "2023.04.25"]
[WhiteClock "0:00:08"]
[BlackClock "0:00:06"]

1. e4 {[%clk 0:02:58]}  c6 {[%clk 0:02:56]} 2. Nc3 {[%clk 0:02:54]}  d5 {[%clk 0:02:57]} 3. Qf3 {[%clk 0:02:52]}  d4 {[%clk 0:02:37]} 4. Bc4 {[%clk 0:02:51]}  e6 {[%clk 0:02:35]} 5. Nce2 {[%clk 0:02:50]}  Nf6 {[%clk 0:02:27]} 6. d3 {[%clk 0:02:45]}  Be7 {[%clk 0:02:25]} 7. Nh3 {[%clk 0:02:40]}  O-O {[%clk 0:02:25]} 8. Qg3 {[%clk 0:02:40]}  Kh8 {[%clk 0:02:24]} 9. O-O {[%clk 0:02:39]}  a5 {[%clk 0:02:21]} 10. a4 {[%clk 0:02:38]}  c5 {[%clk 0:02:17]} 11. f4 {[%clk 0:02:34]}  Nc6 {[%clk 0:02:16]} 12. Qf3 {[%clk 0:02:30]}  h6 {[%clk 0:02:12]} 13. g4 {[%clk 0:02:29]}  Nh7 {[%clk 0:02:00]} 14. Ng3 {[%clk 0:02:08]}  Nb4 {[%clk 0:01:58]} 15. Rf2 {[%clk 0:02:02]}  b6 {[%clk 0:01:53]} 16. c3 {[%clk 0:02:01]}  Nc6 {[%clk 0:01:50]} 17. Bd2 {[%clk 0:01:59]}  Ba6 {[%clk 0:01:49]} 18. Bxa6 {[%clk 0:01:55]}  Rxa6 {[%clk 0:01:50]} 19. e5 {[%clk 0:01:54]}  dxc3 {[%clk 0:01:36]} 20. bxc3 {[%clk 0:01:52]}  Qd7 {[%clk 0:01:32]} 21. Rg2 {[%clk 0:01:41]}  Raa8 {[%clk 0:01:26]} 22. Nf2 {[%clk 0:01:40]}  Rad8 {[%clk 0:01:20]} 23. Kh1 {[%clk 0:01:40]}  Qd5 {[%clk 0:01:20]} 24. Nge4 {[%clk 0:01:38]}  Rd7 {[%clk 0:01:08]} 25. c4 {[%clk 0:01:31]}  Nd4 {[%clk 0:00:53]} 26. cxd5 {[%clk 0:01:32]}  Nxf3 {[%clk 0:00:53]} 27. d6 {[%clk 0:01:32]}  Bd8 {[%clk 0:00:49]} 28. Be3 {[%clk 0:01:19]}  f6 {[%clk 0:00:43]} 29. Rg3 {[%clk 0:01:17]}  Nh4 {[%clk 0:00:28]} 30. Rh3 {[%clk 0:01:05]}  fxe5 {[%clk 0:00:24]} 31. fxe5 {[%clk 0:01:06]}  Ng6 {[%clk 0:00:25]} 32. d4 {[%clk 0:01:05]}  cxd4 {[%clk 0:00:19]} 33. Bxd4 {[%clk 0:01:06]}  Kg8 {[%clk 0:00:13]} 34. Rc1 {[%clk 0:01:03]}  Ng5 {[%clk 0:00:07]} 35. Rhc3 {[%clk 0:01:01]}  Nxe4 {[%clk 0:00:05]} 36. Nxe4 {[%clk 0:01:02]}  Nf4 {[%clk 0:00:03]} 37. Ng3 {[%clk 0:00:43]}  Nd5 {[%clk 0:00:03]} 38. Rc8 {[%clk 0:00:40]}  Kh7 {[%clk 0:00:04]} 39. Rf1 {[%clk 0:00:34]}  Rxf1+ {[%clk 0:00:03]} 40. Nxf1 {[%clk 0:00:35]}  Rf7 {[%clk 0:00:03]} 41. Ng3 {[%clk 0:00:33]}  Bh4 {[%clk 0:00:03]} 42. Kg2 {[%clk 0:00:17]}  Rf4 {[%clk 0:00:03]} 43. Bf2 {[%clk 0:00:15]}  Rxg4 {[%clk 0:00:03]} 44. d7 {[%clk 0:00:14]}  Rxa4 {[%clk 0:00:02]} 45. d8=Q {[%clk 0:00:13]}  Bxd8 {[%clk 0:00:02]} 46. Rxd8 {[%clk 0:00:14]}  Nf4+ {[%clk 0:00:03]} 47. Kf3 {[%clk 0:00:14]}  Nd5 {[%clk 0:00:02]} 48. Rd6 {[%clk 0:00:13]}  Nf4 {[%clk 0:00:02]} 49. Rxb6 {[%clk 0:00:12]}  g5 {[%clk 0:00:02]} 50. Be3 {[%clk 0:00:12]}  Kg6 {[%clk 0:00:02]} 51. Bxf4 {[%clk 0:00:11]}  Rxf4+ {[%clk 0:00:02]} 52. Ke3 {[%clk 0:00:12]}  h5 {[%clk 0:00:02]} 53. Rxe6+ {[%clk 0:00:11]}  Kf7 {[%clk 0:00:02]} 54. Ra6 {[%clk 0:00:08]}  h4 {[%clk 0:00:03]} 55. Ne4 {[%clk 0:00:08]}  Rg4 {[%clk 0:00:01]} 56. h3 {[%clk 0:00:06]}  Rg2 {[%clk 0:00:01]} 57. Kf3 {[%clk 0:00:06]}  Rg1 {[%clk 0:00:01]} 58. Rxa5 {[%clk 0:00:06]}  Kg6 {[%clk 0:00:01]} 59. Ra6+ {[%clk 0:00:06]}  Kf5 {[%clk 0:00:01]} 60. Rf6+ {[%clk 0:00:06]}  Kxe5 {[%clk 0:00:02]} 61. Rg6 {[%clk 0:00:04]}  Rf1+ {[%clk 0:00:02]} 62. Kg4 {[%clk 0:00:04]}  Kxe4 {[%clk 0:00:02]} 63. Rxg5 {[%clk 0:00:02]}  Rg1+ {[%clk 0:00:02]} 64. Kxh4 {[%clk 0:00:02]}  Rxg5 {[%clk 0:00:03]} 65. Kxg5 {[%clk 0:00:03]}  Ke5 {[%clk 0:00:03]} 66. h4 {[%clk 0:00:03]}  Ke6 {[%clk 0:00:04]} 67. Kg6 {[%clk 0:00:04]}  Ke7 {[%clk 0:00:04]} 68. Kg7 {[%clk 0:00:05]}  Ke6 {[%clk 0:00:04]} 69. h5 {[%clk 0:00:05]}  Kf5 {[%clk 0:00:05]} 70. h6 {[%clk 0:00:06]}  Kg5 {[%clk 0:00:06]} 71. h7 {[%clk 0:00:07]}  Kg4 {[%clk 0:00:06]} 72. h8=Q {[%clk 0:00:08]} 1-0


[Site "https://www.chess.com"]

[Event "Titled Tuesday Blitz April 25 Late 2023"]
[White "Mortazavi, Ali"]
[Black "Romero Ruscalleda, Josep"]
[WhiteFideId "401323"]
[BlackFideId "2231859"]
[WhiteElo "2339"]
[BlackElo "2183"]
[Result "1-0"]
[Round "05"]
[TimeControl "180+2"]
[Date "2023.04.25"]
[WhiteClock "0:00:10"]
[BlackClock "0:00:01"]

1. Nf3 {[%clk 0:02:52]}  g6 {[%clk 0:03:00]} 2. e4 {[%clk 0:02:51]}  Bg7 {[%clk 0:03:01]} 3. d4 {[%clk 0:02:52]}  d6 {[%clk 0:03:01]} 4. Nc3 {[%clk 0:02:52]}  a6 {[%clk 0:03:01]} 5. Be3 {[%clk 0:02:47]}  b5 {[%clk 0:03:00]} 6. Bd3 {[%clk 0:02:46]}  Bb7 {[%clk 0:03:00]} 7. a4 {[%clk 0:02:45]}  b4 {[%clk 0:02:59]} 8. Ne2 {[%clk 0:02:46]}  Nf6 {[%clk 0:02:57]} 9. Ng3 {[%clk 0:02:46]}  h5 {[%clk 0:02:54]} 10. Bg5 {[%clk 0:02:45]}  Nbd7 {[%clk 0:02:49]} 11. Qd2 {[%clk 0:02:44]}  c5 {[%clk 0:02:40]} 12. c3 {[%clk 0:02:44]}  bxc3 {[%clk 0:02:35]} 13. bxc3 {[%clk 0:02:44]}  Qa5 {[%clk 0:02:33]} 14. O-O {[%clk 0:02:23]}  h4 {[%clk 0:02:19]} 15. Nxh4 {[%clk 0:01:40]}  cxd4 {[%clk 0:02:17]} 16. Rab1 {[%clk 0:01:39]}  dxc3 {[%clk 0:02:09]} 17. Qc1 {[%clk 0:01:37]}  Bc6 {[%clk 0:02:01]} 18. Nf3 {[%clk 0:01:32]}  Rc8 {[%clk 0:01:55]} 19. Bc2 {[%clk 0:01:17]}  Ng4 {[%clk 0:01:42]} 20. h3 {[%clk 0:01:00]}  Nge5 {[%clk 0:01:42]} 21. Nd4 {[%clk 0:00:58]}  Ba8 {[%clk 0:01:33]} 22. Nb3 {[%clk 0:00:53]}  Qxa4 {[%clk 0:01:25]} 23. f4 {[%clk 0:00:50]}  Nc4 {[%clk 0:01:18]} 24. e5 {[%clk 0:00:35]}  Qc6 {[%clk 0:01:05]} 25. Be4 {[%clk 0:00:33]}  d5 {[%clk 0:01:05]} 26. Bf3 {[%clk 0:00:19]}  Nb2 {[%clk 0:00:46]} 27. Kh2 {[%clk 0:00:16]}  Nd3 {[%clk 0:00:30]} 28. Qc2 {[%clk 0:00:14]}  Nb4 {[%clk 0:00:28]} 29. Qf2 {[%clk 0:00:14]}  c2 {[%clk 0:00:22]} 30. Ra1 {[%clk 0:00:13]}  Nd3 {[%clk 0:00:20]} 31. Qe3 {[%clk 0:00:11]}  Qc3 {[%clk 0:00:19]} 32. e6 {[%clk 0:00:07]}  Nf6 {[%clk 0:00:15]} 33. exf7+ {[%clk 0:00:07]}  Kxf7 {[%clk 0:00:15]} 34. f5 {[%clk 0:00:07]}  Qxb3 {[%clk 0:00:12]} 35. Qe6+ {[%clk 0:00:06]}  Kf8 {[%clk 0:00:12]} 36. fxg6 {[%clk 0:00:07]}  Ne5 {[%clk 0:00:10]} 37. Qxe5 {[%clk 0:00:06]}  d4 {[%clk 0:00:10]} 38. Nf5 {[%clk 0:00:04]}  Qb8 {[%clk 0:00:07]} 39. Qxb8 {[%clk 0:00:03]}  Rxb8 {[%clk 0:00:07]} 40. Rxa6 {[%clk 0:00:02]}  Bxf3 {[%clk 0:00:06]} 41. gxf3 {[%clk 0:00:02]}  d3 {[%clk 0:00:06]} 42. Nd4 {[%clk 0:00:02]}  Rd8 {[%clk 0:00:05]} 43. Ne6+ {[%clk 0:00:02]}  Ke8 {[%clk 0:00:05]} 44. Nxd8 {[%clk 0:00:03]}  Kxd8 {[%clk 0:00:05]} 45. Ra8+ {[%clk 0:00:03]}  Kc7 {[%clk 0:00:06]} 46. Rxh8 {[%clk 0:00:03]}  Bxh8 {[%clk 0:00:06]} 47. Bd2 {[%clk 0:00:03]}  Bg7 {[%clk 0:00:06]} 48. h4 {[%clk 0:00:03]}  Nd5 {[%clk 0:00:06]} 49. h5 {[%clk 0:00:04]}  Be5+ {[%clk 0:00:05]} 50. f4 {[%clk 0:00:04]}  Bc3 {[%clk 0:00:05]} 51. Bc1 {[%clk 0:00:03]}  d2 {[%clk 0:00:05]} 52. Bxd2 {[%clk 0:00:03]}  Bxd2 {[%clk 0:00:05]} 53. g7 {[%clk 0:00:04]}  Nf6 {[%clk 0:00:05]} 54. h6 {[%clk 0:00:04]}  c1=Q {[%clk 0:00:03]} 55. Rxc1+ {[%clk 0:00:05]}  Bxc1 {[%clk 0:00:04]} 56. h7 {[%clk 0:00:05]}  Bxf4+ {[%clk 0:00:04]} 57. Kh3 {[%clk 0:00:06]}  Nxh7 {[%clk 0:00:03]} 58. g8=Q {[%clk 0:00:06]}  Nf6 {[%clk 0:00:04]} 59. Qc4+ {[%clk 0:00:06]}  Kd7 {[%clk 0:00:03]} 60. Qxf4 {[%clk 0:00:07]}  Ke8 {[%clk 0:00:02]} 61. Qf5 {[%clk 0:00:07]}  Kf7 {[%clk 0:00:03]} 62. Kg2 {[%clk 0:00:07]}  Kg7 {[%clk 0:00:03]} 63. Kf1 {[%clk 0:00:08]}  Kf7 {[%clk 0:00:04]} 64. Kg2 {[%clk 0:00:08]}  Kf8 {[%clk 0:00:04]} 65. Kh3 {[%clk 0:00:09]}  Kf7 {[%clk 0:00:05]} 66. Kh4 {[%clk 0:00:09]}  Kg7 {[%clk 0:00:05]} 67. Kg5 {[%clk 0:00:09]}  Kf7 {[%clk 0:00:06]} 68. Qg6+ {[%clk 0:00:09]}  Ke6 {[%clk 0:00:06]} 69. Qb1 {[%clk 0:00:10]}  Kf7 {[%clk 0:00:06]} 70. Qa2+ {[%clk 0:00:10]}  Kg7 {[%clk 0:00:06]} 71. Qa7 {[%clk 0:00:10]}  Kf7 {[%clk 0:00:06]} 72. Qa6 {[%clk 0:00:10]}  Kg7 {[%clk 0:00:05]} 73. Qe6 {[%clk 0:00:10]}  Ng8 {[%clk 0:00:05]} 74. Qg6+ {[%clk 0:00:10]}  Kf8 {[%clk 0:00:05]} 75. Kf5 {[%clk 0:00:10]}  Nh6+ {[%clk 0:00:01]} 76. Ke6 {[%clk 0:00:10]} 1-0


[Site "https://www.chess.com"]

[Event "Titled Tuesday Blitz April 25 Late 2023"]
[White "Novikova, Galina"]
[Black "Filgueira, Hernan"]
[WhiteFideId "4157095"]
[BlackFideId "101770"]
[WhiteElo "1953"]
[BlackElo "2363"]
[Result "0-1"]
[Round "05"]
[TimeControl "180+2"]
[Date "2023.04.25"]
[WhiteClock "0:00:01"]
[BlackClock "0:00:53"]

1. e4 {[%clk 0:02:56]}  c5 {[%clk 0:02:59]} 2. Nf3 {[%clk 0:02:56]}  e6 {[%clk 0:02:59]} 3. b4 {[%clk 0:02:56]}  b6 {[%clk 0:02:55]} 4. bxc5 {[%clk 0:02:55]}  bxc5 {[%clk 0:02:55]} 5. c3 {[%clk 0:02:56]}  Nf6 {[%clk 0:02:53]} 6. e5 {[%clk 0:02:55]}  Nd5 {[%clk 0:02:53]} 7. d4 {[%clk 0:02:55]}  cxd4 {[%clk 0:02:53]} 8. cxd4 {[%clk 0:02:56]}  Bb4+ {[%clk 0:02:51]} 9. Bd2 {[%clk 0:02:55]}  Nc6 {[%clk 0:02:48]} 10. Bd3 {[%clk 0:02:54]}  Bxd2+ {[%clk 0:02:42]} 11. Nbxd2 {[%clk 0:02:43]}  Ncb4 {[%clk 0:02:38]} 12. Ne4 {[%clk 0:02:19]}  O-O {[%clk 0:02:05]} 13. O-O {[%clk 0:02:17]}  f5 {[%clk 0:02:02]} 14. Nd6 {[%clk 0:02:02]}  a5 {[%clk 0:01:56]} 15. Bc4 {[%clk 0:01:43]}  Ba6 {[%clk 0:01:55]} 16. Bxa6 {[%clk 0:01:38]}  Rxa6 {[%clk 0:01:54]} 17. a3 {[%clk 0:01:32]}  Nc6 {[%clk 0:01:54]} 18. Qd2 {[%clk 0:01:08]}  Rb6 {[%clk 0:01:47]} 19. Rac1 {[%clk 0:01:04]}  Qb8 {[%clk 0:01:41]} 20. h4 {[%clk 0:00:55]}  h6 {[%clk 0:01:38]} 21. h5 {[%clk 0:00:52]}  Rb3 {[%clk 0:01:37]} 22. Nc4 {[%clk 0:00:37]}  Qb5 {[%clk 0:01:26]} 23. Nh4 {[%clk 0:00:06]}  Rb8 {[%clk 0:01:11]} 24. Ng6 {[%clk 0:00:06]}  Qa4 {[%clk 0:01:06]} 25. Nd6 {[%clk 0:00:05]}  Qxd4 {[%clk 0:01:02]} 26. Qe2 {[%clk 0:00:02]}  Rb2 {[%clk 0:00:58]} 27. Qf3 {[%clk 0:00:01]}  R8b3 {[%clk 0:00:53]} 0-1


[Site "https://www.chess.com"]

[Event "Titled Tuesday Blitz April 25 Late 2023"]
[White "Schuster, Karsten"]
[Black "Musovic, Armin"]
[WhiteFideId "4611071"]
[BlackFideId "939935"]
[WhiteElo "2294"]
[BlackElo "2322"]
[Result "0-1"]
[Round "05"]
[TimeControl "180+2"]
[Date "2023.04.25"]
[WhiteClock "0:00:02"]
[BlackClock "0:00:09"]

1. d4 {[%clk 0:03:00]}  d5 {[%clk 0:02:53]} 2. c4 {[%clk 0:03:01]}  c5 {[%clk 0:02:52]} 3. dxc5 {[%clk 0:02:59]}  e6 {[%clk 0:02:51]} 4. cxd5 {[%clk 0:02:59]}  Bxc5 {[%clk 0:02:51]} 5. Nc3 {[%clk 0:02:59]}  Nf6 {[%clk 0:02:50]} 6. Nf3 {[%clk 0:02:58]}  exd5 {[%clk 0:02:51]} 7. e3 {[%clk 0:02:58]}  O-O {[%clk 0:02:51]} 8. Be2 {[%clk 0:02:58]}  Nc6 {[%clk 0:02:51]} 9. O-O {[%clk 0:02:58]}  a6 {[%clk 0:02:52]} 10. b3 {[%clk 0:02:56]}  Ba7 {[%clk 0:02:52]} 11. Bb2 {[%clk 0:02:57]}  Re8 {[%clk 0:02:52]} 12. Rc1 {[%clk 0:02:50]}  Bg4 {[%clk 0:02:49]} 13. Nd4 {[%clk 0:02:48]}  Bxe2 {[%clk 0:02:40]} 14. Ncxe2 {[%clk 0:02:48]}  Ne5 {[%clk 0:02:39]} 15. Ng3 {[%clk 0:02:43]}  Rc8 {[%clk 0:02:36]} 16. Rxc8 {[%clk 0:02:42]}  Qxc8 {[%clk 0:02:37]} 17. Ndf5 {[%clk 0:02:40]}  Qe6 {[%clk 0:02:22]} 18. h3 {[%clk 0:02:30]}  Ne4 {[%clk 0:01:57]} 19. Nd4 {[%clk 0:01:52]}  Qg6 {[%clk 0:01:43]} 20. Nge2 {[%clk 0:01:35]}  Bxd4 {[%clk 0:01:15]} 21. Nxd4 {[%clk 0:01:26]}  Nc5 {[%clk 0:01:08]} 22. Nf3 {[%clk 0:01:15]}  Ned3 {[%clk 0:01:05]} 23. Bd4 {[%clk 0:01:12]}  Ne6 {[%clk 0:00:47]} 24. Ba1 {[%clk 0:01:05]}  Qe4 {[%clk 0:00:39]} 25. Ne1 {[%clk 0:00:56]}  Nec5 {[%clk 0:00:36]} 26. Nxd3 {[%clk 0:00:53]}  Nxd3 {[%clk 0:00:31]} 27. Qg4 {[%clk 0:00:49]}  Qxg4 {[%clk 0:00:31]} 28. hxg4 {[%clk 0:00:49]}  Rc8 {[%clk 0:00:27]} 29. Rd1 {[%clk 0:00:48]}  Rc1 {[%clk 0:00:27]} 30. Rf1 {[%clk 0:00:44]}  Rxf1+ {[%clk 0:00:26]} 31. Kxf1 {[%clk 0:00:44]}  Nc1 {[%clk 0:00:27]} 32. Ke1 {[%clk 0:00:42]}  Nxa2 {[%clk 0:00:26]} 33. Kd2 {[%clk 0:00:43]}  Nb4 {[%clk 0:00:26]} 34. Kc3 {[%clk 0:00:42]}  Nc6 {[%clk 0:00:26]} 35. f3 {[%clk 0:00:36]}  f6 {[%clk 0:00:26]} 36. b4 {[%clk 0:00:30]}  Kf7 {[%clk 0:00:25]} 37. Kb3 {[%clk 0:00:30]}  g6 {[%clk 0:00:24]} 38. Bc3 {[%clk 0:00:28]}  h5 {[%clk 0:00:24]} 39. gxh5 {[%clk 0:00:27]}  gxh5 {[%clk 0:00:25]} 40. Kc2 {[%clk 0:00:27]}  f5 {[%clk 0:00:25]} 41. Kd3 {[%clk 0:00:27]}  Ke6 {[%clk 0:00:23]} 42. Be1 {[%clk 0:00:26]}  b6 {[%clk 0:00:23]} 43. Bd2 {[%clk 0:00:24]}  a5 {[%clk 0:00:21]} 44. bxa5 {[%clk 0:00:23]}  bxa5 {[%clk 0:00:22]} 45. Kc2 {[%clk 0:00:20]}  a4 {[%clk 0:00:20]} 46. Kb2 {[%clk 0:00:20]}  d4 {[%clk 0:00:19]} 47. Ka3 {[%clk 0:00:18]}  Kd5 {[%clk 0:00:17]} 48. Kxa4 {[%clk 0:00:17]}  Kc4 {[%clk 0:00:18]} 49. exd4 {[%clk 0:00:16]}  Nxd4 {[%clk 0:00:18]} 50. Be3 {[%clk 0:00:11]}  Kd3 {[%clk 0:00:17]} 51. Bh6 {[%clk 0:00:06]}  Nc2 {[%clk 0:00:14]} 52. Kb5 {[%clk 0:00:06]}  Ne1 {[%clk 0:00:14]} 53. Kc6 {[%clk 0:00:02]}  Nxg2 {[%clk 0:00:12]} 54. Kd5 {[%clk 0:00:02]}  h4 {[%clk 0:00:09]} 0-1


[Site "https://www.chess.com"]

[Event "Titled Tuesday Blitz April 25 Late 2023"]
[White "Moral Garcia, Serafin"]
[Black "Vifleemskaia, Svetlana"]
[WhiteFideId "2201925"]
[BlackFideId "4129490"]
[WhiteElo "2274"]
[BlackElo "1930"]
[Result "1/2-1/2"]
[Round "05"]
[TimeControl "180+2"]
[Date "2023.04.25"]
[WhiteClock "0:00:25"]
[BlackClock "0:00:06"]

1. e4 {[%clk 0:02:15]}  e5 {[%clk 0:02:58]} 2. Nf3 {[%clk 0:02:15]}  Nc6 {[%clk 0:02:58]} 3. Bb5 {[%clk 0:02:16]}  a6 {[%clk 0:02:57]} 4. Bxc6 {[%clk 0:02:16]}  dxc6 {[%clk 0:02:57]} 5. O-O {[%clk 0:02:17]}  Ne7 {[%clk 0:02:57]} 6. Nxe5 {[%clk 0:02:16]}  Qd4 {[%clk 0:02:56]} 7. Qh5 {[%clk 0:02:17]}  g6 {[%clk 0:02:55]} 8. Qg5 {[%clk 0:02:17]}  Bg7 {[%clk 0:02:54]} 9. Nd3 {[%clk 0:02:17]}  Qxe4 {[%clk 0:02:49]} 10. Re1 {[%clk 0:02:14]}  h6 {[%clk 0:02:49]} 11. Qg3 {[%clk 0:02:14]}  Qf5 {[%clk 0:02:42]} 12. Qxc7 {[%clk 0:02:14]}  Qd7 {[%clk 0:02:42]} 13. Qxd7+ {[%clk 0:02:12]}  Bxd7 {[%clk 0:02:41]} 14. Ne5 {[%clk 0:02:12]}  Be6 {[%clk 0:02:38]} 15. d3 {[%clk 0:02:10]}  Kf8 {[%clk 0:02:14]} 16. Nc3 {[%clk 0:02:10]}  Rd8 {[%clk 0:02:11]} 17. h3 {[%clk 0:02:04]}  Bf6 {[%clk 0:01:59]} 18. Bf4 {[%clk 0:02:01]}  Kg7 {[%clk 0:01:59]} 19. Nf3 {[%clk 0:02:00]}  b5 {[%clk 0:01:34]} 20. Be5 {[%clk 0:01:59]}  Nd5 {[%clk 0:01:31]} 21. Bxf6+ {[%clk 0:01:46]}  Nxf6 {[%clk 0:01:31]} 22. Ne4 {[%clk 0:01:44]}  Nxe4 {[%clk 0:01:29]} 23. Rxe4 {[%clk 0:01:43]}  c5 {[%clk 0:01:26]} 24. a3 {[%clk 0:01:41]}  Kf6 {[%clk 0:01:25]} 25. Kf1 {[%clk 0:01:21]}  Rd5 {[%clk 0:01:20]} 26. Rae1 {[%clk 0:01:19]}  Rhd8 {[%clk 0:01:20]} 27. Re5 {[%clk 0:01:17]}  R5d6 {[%clk 0:01:17]} 28. Rxc5 {[%clk 0:01:17]}  Rb6 {[%clk 0:01:16]} 29. Re4 {[%clk 0:01:12]}  a5 {[%clk 0:01:15]} 30. Nd4 {[%clk 0:01:08]}  b4 {[%clk 0:01:04]} 31. axb4 {[%clk 0:01:06]}  axb4 {[%clk 0:00:50]} 32. Nxe6 {[%clk 0:01:06]}  fxe6 {[%clk 0:00:49]} 33. Ke2 {[%clk 0:01:05]}  b3 {[%clk 0:00:48]} 34. c3 {[%clk 0:01:03]}  Ra8 {[%clk 0:00:47]} 35. Kf3 {[%clk 0:00:59]}  Ra2 {[%clk 0:00:44]} 36. Re2 {[%clk 0:00:59]}  Ra1 {[%clk 0:00:43]} 37. Ke3 {[%clk 0:00:55]}  Rc1 {[%clk 0:00:42]} 38. d4 {[%clk 0:00:52]}  g5 {[%clk 0:00:35]} 39. Kd3 {[%clk 0:00:52]}  Rg1 {[%clk 0:00:34]} 40. f3 {[%clk 0:00:51]}  Rb1 {[%clk 0:00:29]} 41. Kc4 {[%clk 0:00:50]}  Rc1 {[%clk 0:00:22]} 42. Rb5 {[%clk 0:00:37]}  Rxb5 {[%clk 0:00:22]} 43. Kxb5 {[%clk 0:00:35]}  Rc2 {[%clk 0:00:21]} 44. Re1 {[%clk 0:00:33]}  Rxb2 {[%clk 0:00:21]} 45. c4 {[%clk 0:00:34]}  Rxg2 {[%clk 0:00:20]} 46. Rb1 {[%clk 0:00:33]}  b2 {[%clk 0:00:20]} 47. c5 {[%clk 0:00:33]}  Rc2 {[%clk 0:00:20]} 48. Kb6 {[%clk 0:00:33]}  Ke7 {[%clk 0:00:19]} 49. c6 {[%clk 0:00:33]}  Kd6 {[%clk 0:00:19]} 50. c7 {[%clk 0:00:33]}  Rxc7 {[%clk 0:00:18]} 51. Rxb2 {[%clk 0:00:34]}  Rc3 {[%clk 0:00:17]} 52. Rf2 {[%clk 0:00:32]}  Rd3 {[%clk 0:00:17]} 53. f4 {[%clk 0:00:31]}  Rxd4 {[%clk 0:00:16]} 54. fxg5 {[%clk 0:00:31]}  hxg5 {[%clk 0:00:16]} 55. Rg2 {[%clk 0:00:32]}  Rd5 {[%clk 0:00:15]} 56. Rg4 {[%clk 0:00:30]}  Ke7 {[%clk 0:00:14]} 57. Kc6 {[%clk 0:00:30]}  Kf6 {[%clk 0:00:14]} 58. Rg1 {[%clk 0:00:30]}  Rd3 {[%clk 0:00:13]} 59. Rf1+ {[%clk 0:00:27]}  Kg6 {[%clk 0:00:10]} 60. Rh1 {[%clk 0:00:25]}  e5 {[%clk 0:00:09]} 61. Kc5 {[%clk 0:00:25]}  e4 {[%clk 0:00:09]} 62. Kc4 {[%clk 0:00:26]}  Kf5 {[%clk 0:00:07]} 63. Rf1+ {[%clk 0:00:25]}  Ke5 {[%clk 0:00:07]} 64. Rg1 {[%clk 0:00:24]}  Kf4 {[%clk 0:00:07]} 65. Rf1+ {[%clk 0:00:24]}  Ke5 {[%clk 0:00:07]} 66. Rg1 {[%clk 0:00:25]}  Kf5 {[%clk 0:00:07]} 67. Rf1+ {[%clk 0:00:25]}  Ke5 {[%clk 0:00:06]} 1/2-1/2


[Site "https://www.chess.com"]